Workbook

Sheet Cotizador
H5: =+TODAY() -> 2025-01-13
C8: COTIZADOR PARA LA FINANCIACIÓN DE SU PÓLIZA
C14: Apreciado Cliente :
C15: Antes de pagar sus pólizas de seguros pregunte por las diferentes alternativas de financiación, de acuerdo a sus necesidades:
C18: PRODUCTO | F18: AUTOS
C19: VALOR POLIZA | F19: 0
C20: INICIO DE VIGENCIA | F20: 2024-12-10
C21: DIAS DE VIGENCIA | F21: =+TODAY()-F20 -> 34
C23: Opción de Financiación | E23: Valor Cuota | F23: Valor Cuota | G23: TASA MV | H23: No. de Días para legalización de la financiación según fecha de inicio de vigencia de la póliza
C25: 2 Cuotas iguales | E25: =IF($F$21<=40,TASAS!$M$2,"N/A") -> 0 | F25: =+IF(($F$19-E25)>350000,E25,"N/A") -> N/A | G25: =+TASAS!$N$2 -> 0 | H25: Hasta 40 días calendario
C26: 3 Cuotas iguales | E26: =IF($F$21<=40,TASAS!$M$3,"N/A") -> 0 | F26: N/A | G26: =+TASAS!$N$3 -> 0 | H26: Hasta 40 días calendario
C27: 4 Cuotas iguales | E27: =IF($F$21<=40,TASAS!$M$4,"N/A") -> 0 | F27: N/A | G27: =+TASAS!$N$4 -> 0 | H27: Hasta 40 días calendario
C28: 5 Cuotas iguales | E28: =IF($F$21<=40,$F$19*TASAS!D10,"N/A") -> 0 | F28: =+IF(($F$19-E28)>350000,E28,"N/A") -> N/A | G28: 0.018 | H28: Hasta 40 días calendario
C29: 6 Cuotas iguales | E29: =IF($F$21<=40,$F$19*TASAS!D11,"N/A") -> 0 | F29: =+IF(($F$19-E29)>350000,E29,"N/A") -> N/A | G29: 0.018 | H29: Hasta 40 días calendario
C30: 7 Cuotas iguales | E30: =IF($F$21<=40,$F$19*TASAS!E12,"N/A") -> 0 | F30: N/A | G30: 0.022 | H30: Hasta 40 días calendario
C31: 8 Cuotas iguales | E31: =IF($F$21<=40,$F$19*TASAS!E13,"N/A") -> 0 | F31: =+IF(($F$19-E31)>350000,E31,"N/A") -> N/A | G31: 0.022 | H31: Hasta 40 días calendario
C32: 9 Cuotas iguales | E32: =IF($F$21<=40,$F$19*TASAS!E14,"N/A") -> 0 | F32: N/A | G32: 0.022 | H32: Hasta 40 días calendario
C33: 10 Cuotas iguales | E33: =IF($F$21<=40,$F$19*TASAS!E15,"N/A") -> 0 | F33: N/A | G33: 0.022 | H33: Hasta 40 días calendario
C35: Ramos Financiables (Autos, Motos, Generales y Salud) Monto mínimo a financiar $350.000. Monto Máximo a finaciar $170.000.000
A36: Elaborado por : GERENCIA DE OPERACIONES FINANCIERAS (Bogotá D.C) Enero 2025 | C36: La PRIMERA CUOTA de financiación se puede recaudar por: - PSE A TRAVES DE LA OFICINA VIRTUAL - Convenio 20196 de Bancolombia y Corresponsales Bancarios
C38: DEBE TENER EN CUENTA:
C40: Una vez decida financiar, las solicitudes de cotización o expedición de pagarés, quedarán disponibles en el aplicativo PSE. Para ello, el cliente debe ingresar a la página web:
C41: https://www.abcpagos.com/hdi/
C42: Por favor realiza los siguientes pasos: 1. En el módulo de Solicitar Financiación, selecciona el número de cuotas, ingresa tu correo electrónico y número de celular luego acepta términos y condiciones.
C43: 2. En el módulo de Realiza el pago de tus cuotas ingresa tu número de documento, escoge la referencia de financiación y realiza el pago a través de PSE
C45: Esto podrás realizarlo en línea desde el momento de emisión de la póliza y a más tardar el día 40 de vigencia de la misma.
C47: Recuerda que ahora únicamente tus solicitudes de financiaciones deben ser tramitados a través del link relacionado
C49: La presente cotización está sujeta al cumplimiento de las políticas de Financiación de primas de HDI SEGUROS COLOMBIA S.A. y HDI COMPAÑÍA DE INVERSIONES Y SERVICIOS S.A.S. y a la veracidad de la información aquí suministrada.
C50: Este documento no supone asunción de riesgo alguno por parte de HDI SEGUROS COLOMBIA S.A. y HDI COMPAÑÍA DE INVERSIONES Y SERVICIOS S.A.S. y por lo tanto no genera ningún tipo de responsabilidad en cabeza de dichas compañías.
C52: Canales de Atención Financiación: www.hdiseguros.com.co/zona-de-cliente/contactanos Teléfono fijo Bogota 601 4924820 Celular 3336026900 WhatsApp 3046472333

Sheet TASAS (hidden)
B1: TASA PLENA | C1: TASA PREFERENCIAL | E1: TASA PLENA | F1: TASA PREFERENCIAL | K1: CI SIN TASA | L1: VR FINANCIADO | M1: VR CUOTA | N1: TASA
A2: Tasa mensual con IVA | B2: 0.022 | C2: 0.018 | E2: 0.022 | F2: 0.012 | J2: DOS IGUALES | K2: =+Cotizador!$F$19/2 -> 0 | L2: =+Cotizador!$F$19-TASAS!K2 -> 0 | M2: =+IF(L2<10000000,K2,Cotizador!F19*TASAS!G7) -> 0 | N2: =+IF(L2<10000000,0%,1.2%) -> 0
J3: TRES IGUALS | K3: =+Cotizador!$F$19/3 -> 0 | L3: =+Cotizador!$F$19-TASAS!K3 -> 0 | M3: =+IF(L3<10000000,K3,Cotizador!$F$19*TASAS!G8) -> 0 | N3: =+IF(L3<10000000,0%,1.2%) -> 0
E4: CUOTAS IGUALES | J4: CUATRO IGUALES | K4: =+Cotizador!$F$19/4 -> 0 | L4: =+Cotizador!$F$19-TASAS!K4 -> 0 | M4: =+IF(L4<10000000,K4,Cotizador!$F$19*TASAS!G9) -> 0 | N4: =+IF(L4<10000000,0%,1.2%) -> 0
A5: No. CUOTAS | B5: FACTOR | C5: FACTOR | E5: FACTOR | F5: FACTOR
A6: 1 | B6: =+-PMT($B$2,A6,1000)/1000 -> 1.022 | C6: =+-PMT($C$2,A6,1000)/1000 -> 1.018 | F6: =+-PMT($F$2,A6,1000)/1000 -> 1.012
A7: 2 | B7: =+-PMT($B$2,A7,1000)/1000 -> 0.5165598417 | C7: =+-PMT($C$2,A7,1000)/1000 -> 0.5135401388 | E7: =+B7/(1+$E$2) -> 0.5054401583 | F7: =+-PMT($F$2,A7,1000)/1000 -> 0.5090178926 | G7: =+F7/(1+$F$2) -> 0.5029821074
A8: 3 | B8: 0.3481063811 | C8: 0.3454046892 | E8: =+B8/(1+$E$2) -> 0.3406128974 | F8: 0.3413651421 | G8: 0.3373173341
A9: 4 | B9: 0.2638995902 | C9: 0.2613503405 | E9: 0.2582187771 | F9: 0.2575447303 | G9: 0.2544908403
A10: 5 | B10: 0.2133914618 | C10: 0.2109284297 | D10: =+C10/(1+$C$2) -> 0.2071988504 | E10: =+B10/(1+$E$2) -> 0.2087979079 | F10: 0.2072572536 | G10: =+F10/(1+$F$2) -> 0.2047996577
A11: 6 | B11: 0.1797326591 | C11: 0.1773227353 | D11: =+C11/(1+$C$2) -> 0.1741873628 | E11: 0.1758636586 | F11: 0.1737362439 | G11: =+F11/(1+$F$2) -> 0.1716761303
A12: 7 | B12: 0.1557020366 | C12: 0.1533263048 | D12: 0.1506152306 | E12: 0.1523503293 | F12: 0.1497960719 | G12: 0.1480198339
A13: 8 | B13: 0.1376890205 | C13: 0.1353356614 | D13: 0.1329426929 | E13: 0.134725069 | F13: 0.131843923 | G13: 0.1302805563
A14: 9 | B14: 0.1236877357 | C14: 0.1213488733 | D14: 0.1192032154 | E14: 0.1210251817 | F14: 0.1178837889 | G14: 0.1164859574
A15: 10 | B15: =+-PMT($B$2,A15,1000)/1000 -> 0.1124946566 | C15: 0.110164781 | D15: 0.1082168772 | E15: =+B15/(1+$E$2) -> 0.1100730495 | F15: 0.1067180646 | G15: 0.105452633
A16: 11 | B16: 0.1033439022 | C16: 0.1010190099 | E16: 0.1011192781 | F16: 0.09758463768 | G16: 0.09642750759
A17: 12 | B17: 0.09572488493 | C17: 0.09340197687 | E17: 0.09366427097 | F17: 0.08997543328 | G17: 0.08890853091
A21: PRODUCTO
A22: AUTOS
A23: MOTOS
A24: TAXIS
A25: PESADOS
A26: GENERALES
A27: SALUD
